bitfinex/quotes_BTCUSD_20230901
["timestamp","ask_amount","ask_price","bid_price","bid_amount"]
[1693588365512,4.10662178,25689.0,25688.0,0.049]
[1693588365718,4.08934178,25689.0,25688.0,0.049]
[1693588365921,3.21330178,25689.0,25688.0,0.049]
[1693588366126,0.94940178,25689.0,25688.0,0.28905352]
[1693588366331,0.54986178,25689.0,25688.0,0.10214535]
[1693588366582,0.158775,25689.0,25688.0,0.3370132]
[1693588366788,0.191775,25689.0,25688.0,0.08351714]
[1693588367038,0.228775,25689.0,25688.0,0.71694956]
[1693588367454,0.155775,25689.0,25688.0,0.71194956]
[1693588367663,0.155775,25689.0,25688.0,0.72194956]
[1693588367664,0.157775,25689.0,25688.0,0.72194956]
[1693588367879,0.407775,25689.0,25688.0,0.47954956]
[1693588368094,0.02,25699.0,25690.0,0.12]
[1693588368306,0.02,25699.0,25691.0,0.18948303]
[1693588368307,0.38708678,25698.0,25691.0,0.18948303]
[1693588368523,0.51268678,25698.0,25693.0,0.2424]
[1693588368728,0.0972,25697.0,25694.0,0.09372303]
[1693588368940,0.38708678,25696.0,25694.0,0.09372303]
[1693588369148,0.02,25699.0,25696.0,0.2424]
[1693588369355,0.021,25699.0,25696.0,0.2424]
[1693588369594,0.01124741,25695.0,25694.0,0.09825024]
[1693588369790,0.01124741,25695.0,25694.0,0.02424]
[1693588370004,0.01124741,25695.0,25694.0,0.02724]
[1693588370218,0.01124741,25695.0,25694.0,0.02424]
[1693588370432,0.01124741,25695.0,25694.0,0.09372303]
[1693588370645,0.022,25699.0,25697.0,0.1]
[1693588370851,0.022,25699.0,25698.0,0.46058303]
[1693588371065,0.022,25699.0,25698.0,0.47540698]
[1693588371273,0.02,25699.0,25698.0,0.47540698]
[1693588371914,0.08778,25708.0,25698.0,0.47540698]
[1693588371915,0.0669,25708.0,25699.0,0.12]
[1693588372133,0.38708678,25707.0,25701.0,0.12]
[1693588372350,0.38708678,25707.0,25705.0,0.2424]
[1693588372538,0.38708678,25707.0,25705.0,0.31188303]
[1693588372954,0.38708678,25707.0,25705.0,0.2424]
[1693588373161,0.003,25708.0,25705.0,0.31188303]
[1693588373367,0.04,25711.0,25706.0,0.0311883]
[1693588373368,0.155665,25707.0,25706.0,0.0311883]
[1693588373568,0.155665,25707.0,25706.0,0.25433127]
[1693588373772,0.157665,25707.0,25706.0,0.25433127]
[1693588373983,0.159665,25707.0,25706.0,0.25433127]
[1693588374190,0.54675178,25707.0,25706.0,0.01193127]
[1693588374394,0.54675178,25707.0,25706.0,0.07212218]
[1693588374606,0.155665,25707.0,25706.0,0.1061744]
[1693588374799,0.162665,25707.0,25706.0,0.06005222]
[1693588375014,0.73408459,25707.0,25706.0,0.026]
[1693588375133,0.162665,25707.0,25706.0,0.09548303]
[1693588375337,0.007,25707.0,25706.0,0.33788303]
[1693588375580,0.007,25707.0,25706.0,0.2684]
[1693588375780,0.007,25707.0,25706.0,0.39261517]
[1693588375979,0.004,25707.0,25706.0,0.39261517]
[1693588376183,0.005,25707.0,25706.0,0.40261517]
[1693588376340,0.005,25707.0,25706.0,0.31718]
[1693588376341,0.001,25707.0,25706.0,0.31718]
[1693588376542,0.1843,25714.0,25706.0,0.37282321]
[1693588376778,0.6228729,25713.0,25711.0,0.2424]
[1693588376981,0.6228729,25713.0,25711.0,0.37481407]
[1693588376982,0.23578612,25712.0,25711.0,0.37481407]
[1693588377191,0.23578612,25712.0,25711.0,0.30533104]
[1693588377626,0.83652356,25712.0,25709.0,0.2424]
[1693588377841,0.23578612,25711.0,25709.0,0.2424]
[1693588378055,0.155639,25714.0,25710.0,0.0118483]
[1693588378262,0.2358093,25713.0,25712.0,0.31217517]
[1693588378515,0.54272578,25714.0,25712.0,0.31217517]
[1693588379395,0.26468072,25713.0,25712.0,0.2424]
[1693588379592,0.23568072,25713.0,25712.0,0.2424]
[1693588379768,0.57172578,25714.0,25712.0,0.26982483]
[1693588379977,0.23567144,25713.0,25712.0,0.26982483]
[1693588380181,0.57172578,25714.0,25712.0,0.33262575]
[1693588380378,0.57172578,25714.0,25712.0,0.26982483]
[1693588380601,0.62376689,25713.0,25712.0,0.01]
[1693588380956,0.23668011,25713.0,25712.0,0.01]
[1693588381159,0.184639,25714.0,25712.0,0.07711256]
[1693588381414,0.79553157,25713.0,25712.0,0.01483689]
[1693588381613,0.95270261,25713.0,25712.0,0.01483689]
[1693588381894,0.94058261,25713.0,25712.0,0.01483689]
[1693588382062,0.23571805,25713.0,25712.0,0.01483689]
[1693588382302,0.191639,25714.0,25712.0,0.08786853]
[1693588382500,0.54972578,25714.0,25712.0,0.08586853]
[1693588382726,0.54972578,25714.0,25712.0,0.04666374]
[1693588382928,0.84857417,25713.0,25712.0,0.01283689]
[1693588383137,0.92417417,25713.0,25712.0,0.01283689]
[1693588383347,0.84857417,25713.0,25712.0,0.01283689]
[1693588383546,0.001,25713.0,25712.0,0.01983689]
[1693588383752,0.001,25713.0,25712.0,0.32974511]
[1693588383960,0.001,25713.0,25712.0,0.36471962]
[1693588384177,0.38808678,25713.0,25712.0,0.0528114]
[1693588384381,0.85582031,25713.0,25712.0,0.0528114]
[1693588384617,0.18853519,25712.0,25710.0,0.03363882]
[1693588384824,0.017,25713.0,25712.0,0.01135898]
[1693588385763,0.016,25713.0,25712.0,0.01135898]
[1693588386556,0.016,25713.0,25712.0,0.80084576]
[1693588386746,0.019,25713.0,25712.0,0.80084576]
[1693588387096,0.019,25713.0,25712.0,0.91053422]
[1693588387300,0.0197,25715.0,25713.0,0.12]
[1693588387505,0.0197,25715.0,25714.0,0.62448678]
[1693588387713,0.0197,25715.0,25714.0,0.78948678]
[1693588387929,0.0197,25715.0,25714.0,0.4024]
[1693588388129,0.0197,25715.0,25714.0,0.35420573]
[1693588388304,0.0394,25715.0,25714.0,0.35420573]
[1693588388541,0.0394,25715.0,25714.0,0.74129251]
[1693588388745,0.0197,25715.0,25714.0,0.35420573]
[1693588389376,0.0227,25715.0,25714.0,0.35420573]
[1693588389779,0.0227,25715.0,25714.0,0.39120573]
[1693588389986,0.0257,25715.0,25714.0,0.48488376]
[1693588391025,0.0257,25715.0,25714.0,0.81529251]
[1693588391232,0.0257,25715.0,25714.0,0.95529251]
[1693588391871,0.0196,25722.0,25717.0,0.08]
[1693588392046,0.0257,25720.0,25717.0,0.53656981]
[1693588392303,0.0257,25720.0,25718.0,0.30405698]
[1693588392510,0.0196,25722.0,25718.0,0.36521665]
[1693588392929,0.1716,25722.0,25718.0,0.30405698]
[1693588393143,0.0226,25719.0,25718.0,0.42405698]
[1693588393351,0.0256,25719.0,25718.0,0.30405698]
[1693588393551,0.0196,25719.0,25718.0,0.40054358]
[1693588393970,0.10354,25719.0,25718.0,0.47454358]
[1693588394187,0.49062678,25719.0,25718.0,0.074]
[1693588394395,0.62270678,25719.0,25718.0,0.074]
[1693588394606,0.70734126,25719.0,25718.0,0.074]
[1693588394761,0.68734126,25719.0,25718.0,0.074]
[1693588394963,0.68734126,25719.0,25718.0,0.037]
[1693588395164,0.48762678,25719.0,25718.0,0.037]
[1693588395331,0.91856678,25719.0,25718.0,0.04826463]
[1693588395523,1.00782298,25719.0,25718.0,0.04826463]
[1693588395771,1.07988298,25719.0,25718.0,0.074]
[1693588395979,1.07994298,25719.0,25718.0,0.01132475]
[1693588396152,1.07994298,25719.0,25718.0,0.04832475]
[1693588396546,1.08168298,25719.0,25718.0,0.08532475]
[1693588396749,1.07430298,25719.0,25718.0,0.01132475]
[1693588396957,0.10254,25719.0,25718.0,0.07232475]
[1693588397174,0.10254,25719.0,25718.0,0.09247248]
[1693588397175,0.48962678,25719.0,25718.0,0.09247248]
[1693588397386,0.48962678,25719.0,25718.0,0.061]
[1693588397731,0.48762678,25719.0,25718.0,0.037]
[1693588397935,0.68187899,25719.0,25718.0,0.037]
[1693588398141,0.09754,25719.0,25714.0,0.02]
[1693588398341,0.25237471,25719.0,25718.0,0.07190085]
[1693588398543,0.13454,25719.0,25718.0,0.04569472]
[1693588398899,0.26110967,25719.0,25718.0,0.04269472]
[1693588399348,0.26410967,25719.0,25718.0,0.04269472]
[1693588399740,0.13454,25719.0,25718.0,0.00300162]
[1693588399941,0.48462678,25719.0,25718.0,0.01081272]
[1693588400165,0.65148678,25719.0,25718.0,0.003]
[1693588400393,0.64728678,25719.0,25718.0,0.003]
[1693588400616,1.20470678,25719.0,25718.0,0.004]
[1693588400836,3.16798678,25719.0,25718.0,0.003]
[1693588401064,3.35250678,25719.0,25718.0,0.003]
[1693588401263,4.21570811,25719.0,25718.0,0.003]
[1693588401398,3.98584811,25719.0,25718.0,0.003]
[1693588401589,3.97724811,25719.0,25718.0,0.003]
[1693588401940,3.98768811,25719.0,25718.0,0.003]
[1693588402136,3.98152811,25719.0,25718.0,0.003]
[1693588402291,3.50002811,25719.0,25718.0,0.003]
[1693588402499,2.22120811,25719.0,25718.0,0.003]
[1693588402701,1.03690811,25719.0,25718.0,0.003]
[1693588402923,1.10350811,25719.0,25718.0,0.003]
[1693588403134,1.07778811,25719.0,25713.0,0.2639]
[1693588403354,0.84192149,25718.0,25714.0,0.05063]
[1693588403580,1.93264149,25718.0,25714.0,0.05063]
[1693588403872,0.51176306,25719.0,25715.0,0.25316971]
[1693588404045,0.51176306,25719.0,25718.0,0.003]
[1693588404046,0.93584984,25719.0,25718.0,0.003]
[1693588404248,0.90966365,25719.0,25718.0,0.003]
[1693588404425,0.90966365,25719.0,25718.0,0.01381272]
[1693588404643,0.99648365,25719.0,25718.0,0.01381272]
[1693588404979,0.99300365,25719.0,25718.0,0.01381272]
[1693588405195,1.04062868,25719.0,25718.0,0.003]
[1693588405391,0.87266365,25719.0,25718.0,0.003]
[1693588405617,0.90966365,25719.0,25718.0,0.003]
[1693588405833,0.90966365,25719.0,25714.0,0.05363]
[1693588405834,0.95762365,25719.0,25714.0,0.05063]
[1693588406013,0.58252365,25718.0,25715.0,0.031753]
[1693588406210,0.19543687,25717.0,25715.0,0.031753]
[1693588406568,0.19543687,25717.0,25716.0,0.01082118]
[1693588406763,0.19543687,25717.0,25715.0,0.031753]
[1693588407192,0.19543687,25717.0,25716.0,0.01082118]
[1693588407638,0.19543687,25717.0,25715.0,0.031753]
[1693588407803,0.22102413,25716.0,25715.0,0.031753]
[1693588407995,0.22102413,25716.0,25715.0,0.034753]
[1693588408201,0.19543687,25717.0,25715.0,0.034753]
[1693588408645,0.19543687,25717.0,25715.0,0.031753]
[1693588408842,0.23243687,25717.0,25716.0,0.003]
[1693588408993,0.18955325,25716.0,25715.0,0.034753]
[1693588409193,0.38499012,25716.0,25715.0,0.034753]
[1693588410042,0.38499012,25716.0,25715.0,0.003]
[1693588410554,0.42199012,25716.0,25715.0,0.006]
[1693588410749,0.42199012,25716.0,25715.0,0.003]
[1693588411162,0.44899012,25716.0,25715.0,0.006]
[1693588411583,0.25355325,25716.0,25715.0,0.006]
[1693588411768,0.44906733,25716.0,25715.0,0.006]
[1693588412184,0.64660086,25716.0,25715.0,0.006]
[1693588412383,1.08876086,25716.0,25715.0,0.006]
[1693588412555,1.57680086,25716.0,25715.0,0.006]
[1693588412751,2.01742841,25716.0,25715.0,0.006]
[1693588412976,3.28658539,25716.0,25715.0,0.006]
[1693588413276,3.24431143,25716.0,25715.0,0.006]
[1693588413495,3.06038539,25716.0,25715.0,0.006]
[1693588413699,5.04658539,25716.0,25715.0,0.006]
[1693588413878,4.00482539,25716.0,25715.0,0.003]
[1693588414247,3.11305639,25716.0,25715.0,0.006]
[1693588414448,3.02046539,25716.0,25715.0,0.006]
[1693588414579,2.99546539,25716.0,25715.0,0.003]
[1693588416470,4.33848086,25716.0,25715.0,0.006]
[1693588416604,4.56168086,25716.0,25715.0,0.006]
[1693588416808,4.63440086,25716.0,25715.0,0.006]
[1693588417054,4.42692581,25716.0,25715.0,0.006]
[1693588417290,4.42800581,25716.0,25715.0,0.006]
[1693588417492,4.42944581,25716.0,25715.0,0.006]
[1693588417697,4.42926581,25716.0,25703.0,0.2777]
[1693588417897,0.40708678,25710.0,25704.0,0.09725303]
[1693588418132,0.67058626,25709.0,25702.0,0.2624]
[1693588418335,0.55138678,25708.0,25702.0,0.2624]
[1693588418528,0.17483471,25707.0,25702.0,0.2624]
[1693588418649,0.38708678,25706.0,25702.0,0.2624]
[1693588418845,0.63534149,25706.0,25704.0,0.003]
[1693588419053,0.46622678,25706.0,25704.0,0.003]
[1693588419252,0.46622678,25706.0,25702.0,0.34522234]
[1693588419253,0.54276678,25706.0,25702.0,0.34522234]
[1693588419465,0.54276678,25706.0,25703.0,0.04541459]
[1693588419668,0.15568,25706.0,25703.0,0.06948303]
[1693588419905,0.15568,25706.0,25705.0,0.2424]
[1693588420109,0.15868,25706.0,25705.0,0.2424]
[1693588420737,0.004,25707.0,25705.0,0.33188303]
[1693588421102,0.004,25707.0,25706.0,0.3424]
[1693588421325,0.003,25708.0,25706.0,0.3424]
[1693588421539,0.09154,25710.0,25707.0,0.07894868]
[1693588421744,0.38708678,25709.0,25706.0,0.07236984]
[1693588422151,0.38708678,25709.0,25706.0,0.01085938]
[1693588422354,0.20930658,25707.0,25706.0,0.01585938]
[1693588422577,0.009,25707.0,25706.0,0.01685938]
[1693588422910,0.001,25707.0,25706.0,0.01585938]
[1693588423123,0.21506121,25707.0,25706.0,0.01585938]
[1693588423323,0.21506121,25707.0,25706.0,0.01885938]
[1693588423504,0.83214678,25707.0,25706.0,0.01385938]
[1693588423716,0.83214678,25707.0,25698.0,0.2662]
[1693588423717,0.02,25700.0,25698.0,0.2662]
[1693588423926,0.02,25700.0,25692.0,0.2424]
[1693588423927,0.54192149,25699.0,25692.0,0.2424]
[1693588424129,0.61080149,25699.0,25693.0,0.2662]
[1693588424416,0.61140149,25699.0,25693.0,0.2662]
[1693588424619,0.61284149,25699.0,25693.0,0.2662]
[1693588424817,0.61356149,25699.0,25693.0,0.2662]
[1693588424998,0.61524149,25699.0,25694.0,0.05086]
[1693588425219,0.69764149,25699.0,25694.0,0.05086]
[1693588425334,0.54480678,25699.0,25694.0,0.05086]
[1693588425531,0.54680678,25699.0,25694.0,0.05086]
[1693588425734,0.70164149,25699.0,25695.0,0.033506]
[1693588425949,0.54680678,25699.0,25695.0,0.033506]
[1693588426318,0.19662589,25698.0,25695.0,0.033506]
[1693588426520,0.19662589,25698.0,25695.0,0.09362199]
[1693588427763,0.38708678,25697.0,25693.0,0.2662]
[1693588427964,0.54192149,25697.0,25693.0,0.2662]
[1693588428282,0.54192149,25697.0,25695.0,0.005]
[1693588428509,0.38708678,25697.0,25695.0,0.005]
[1693588428729,0.34,25701.0,25693.0,0.2662]
[1693588428730,0.0196,25719.0,25718.0,0.1]
[1693588432224,0.0226,25726.0,25725.0,0.41071391]
[1693588432431,0.0236,25726.0,25725.0,0.38571391]
[1693588432651,0.41627252,25726.0,25725.0,0.13878657]
[1693588432861,0.41627252,25726.0,25725.0,0.05878657]
[1693588432862,0.26143781,25726.0,25725.0,0.05878657]
[1693588433070,0.26143781,25726.0,25725.0,0.11878657]
[1693588433272,0.04978207,25724.0,25723.0,0.04]
[1693588433492,0.04978207,25724.0,25720.0,0.04]
[1693588433493,0.59170356,25724.0,25720.0,0.04]
[1693588433706,0.56192149,25723.0,25720.0,0.04]
[1693588433914,0.56192149,25723.0,25721.0,0.00978402]
[1693588434118,0.49252678,25723.0,25721.0,0.00978402]
[1693588434321,0.48844678,25723.0,25720.0,0.04]
[1693588434523,0.48886678,25723.0,25720.0,0.04]
[1693588434727,0.48934678,25723.0,25720.0,0.044]
[1693588434945,0.48892678,25723.0,25720.0,0.04]
[1693588435151,0.48760678,25723.0,25720.0,0.04]
[1693588435328,0.48646678,25723.0,25720.0,0.04]
[1693588435561,0.48892678,25723.0,25720.0,0.04]
[1693588435739,0.06774,25722.0,25721.0,0.003]
[1693588435970,0.47500678,25722.0,25721.0,0.003]
[1693588436188,0.69555701,25722.0,25721.0,0.003]
[1693588436371,0.69435701,25722.0,25721.0,0.003]
[1693588436613,0.40708678,25722.0,25721.0,0.003]
[1693588437030,0.005,25723.0,25721.0,0.07248303]
[1693588437253,0.04978207,25724.0,25723.0,0.06]
[1693588437440,0.04978207,25724.0,25723.0,0.16667133]
[1693588437674,0.04978207,25724.0,25723.0,0.0971883]
[1693588437886,0.04978207,25724.0,25723.0,0.06977262]
[1693588438097,0.04978207,25724.0,25723.0,0.02977262]
[1693588438499,0.04978207,25724.0,25723.0,0.02]
[1693588438723,0.04978207,25724.0,25723.0,0.04]
[1693588438941,0.04978207,25724.0,25715.0,0.3424]
[1693588439155,0.04978207,25724.0,25714.0,0.02]
[1693588439156,0.56192149,25723.0,25721.0,0.02]
[1693588439373,0.40708678,25723.0,25721.0,0.02]
[1693588439589,0.40708678,25723.0,25713.0,0.06]
[1693588439590,0.04,25721.0,25713.0,0.06]
[1693588439796,0.04,25721.0,25714.0,0.04]
[1693588439797,0.2824,25720.0,25714.0,0.04]
[1693588440007,0.04,25719.0,25712.0,0.06]
[1693588440221,0.04,25719.0,25710.0,0.04]
[1693588440222,0.04,25716.0,25710.0,0.04]
[1693588440428,0.81478678,25718.0,25703.0,0.11273771]
[1693588440429,0.02,25713.0,25703.0,0.11273771]
[1693588440634,0.82432149,25712.0,25705.0,0.02]
[1693588440844,0.82432149,25712.0,25703.0,0.09273771]
[1693588440845,0.85152149,25712.0,25706.0,0.02]
[1693588441061,0.3,25711.0,25706.0,0.02]
[1693588441265,0.56192149,25710.0,25705.0,0.02]
[1693588441492,0.64658149,25710.0,25705.0,0.02]
[1693588441700,0.08562,25709.0,25707.0,0.00986387]
[1693588441904,0.08562,25709.0,25705.0,0.001]
[1693588441905,0.40708678,25708.0,25705.0,0.001]
[1693588442113,0.40708678,25708.0,25703.0,0.02]
[1693588442114,0.56192149,25708.0,25703.0,0.02]
[1693588442326,0.59483471,25707.0,25706.0,0.01038443]
[1693588442568,1.24408149,25707.0,25699.0,0.02]
[1693588442784,0.02,25700.0,25699.0,0.18547543]
[1693588442991,0.02,25702.0,25688.0,0.09278894]
[1693588442992,0.02,25694.0,25688.0,0.09278894]
[1693588443202,0.02,25698.0,25688.0,0.09278894]
[1693588443203,0.02,25689.0,25688.0,0.09278894]
[1693588443415,0.02,25691.0,25682.0,0.09279945]
[1693588443631,0.54192149,25689.0,25686.0,0.2624]
[1693588443851,0.15483471,25688.0,25686.0,0.2624]
[1693588444062,0.10776994,25695.0,25688.0,0.02]
[1693588444274,0.1562,25697.0,25691.0,0.2424]
[1693588444486,0.1562,25697.0,25689.0,0.2424]
[1693588444697,0.1562,25697.0,25690.0,0.09572303]
[1693588444698,0.005,25691.0,25690.0,0.09572303]
[1693588444948,0.005,25691.0,25690.0,0.41332678]
[1693588445216,0.39038,25700.0,25690.0,0.02624]
[1693588445425,0.028,25695.0,25691.0,0.06948303]
[1693588445638,0.38708678,25694.0,25690.0,0.02624]
[1693588445849,0.18283471,25695.0,25690.0,0.48280981]
[1693588445850,0.028,25695.0,25690.0,0.48280981]
[1693588446069,0.028,25695.0,25692.0,0.16]
[1693588446286,0.028,25695.0,25691.0,0.54085079]
[1693588446287,0.2222,25707.0,25697.0,0.16]
[1693588446539,0.02,25709.0,25699.0,0.02]
[1693588446772,0.46082678,25706.0,25700.0,0.06948303]
[1693588447027,0.02,25704.0,25700.0,0.06948303]
[1693588447288,0.02,25701.0,25691.0,0.06428098]
[1693588447550,0.02,25701.0,25690.0,0.02624]
[1693588447551,0.57792149,25700.0,25697.0,0.003]
[1693588447797,0.66110149,25700.0,25690.0,0.02624]
[1693588448055,0.56192149,25699.0,25690.0,0.02624]
[1693588448282,0.02,25696.0,25690.0,0.02624]
[1693588448502,0.02,25693.0,25682.0,0.2424]
[1693588448710,0.02,25693.0,25681.0,0.16]
[1693588448711,0.56192149,25692.0,25681.0,0.16]
[1693588448947,0.02,25691.0,25680.0,0.2424]
[1693588449173,0.02,25691.0,25677.0,0.3224]
[1693588449174,0.02,25688.0,25677.0,0.3224]
[1693588449398,0.02,25684.0,25680.0,0.03102136]
[1693588449617,0.02,25684.0,25672.0,0.20539326]
[1693588449618,0.02,25675.0,25672.0,0.11259545]
[1693588449845,0.6501,25681.0,25675.0,0.02]
[1693588450080,0.21236812,25680.0,25675.0,0.02]
[1693588450306,0.26106922,25681.0,25674.0,0.0329278]
[1693588450531,0.1843,25682.0,25677.0,0.2424]
[1693588450743,0.0070722,25679.0,25677.0,0.2424]
[1693588450957,0.0070722,25679.0,25678.0,0.02424]
[1693588451169,0.02,25685.0,25678.0,0.02424]
[1693588451170,0.0070722,25685.0,25678.0,0.02424]
[1693588451395,0.0070722,25685.0,25684.0,0.2424]
[1693588451396,0.54192149,25685.0,25684.0,0.2424]
[1693588451606,0.40248,25692.0,25684.0,0.2424]
[1693588451607,0.0070722,25692.0,25685.0,0.02]
[1693588451823,0.0070722,25691.0,25686.0,0.31188303]
[1693588452030,0.0070722,25691.0,25686.0,0.69896981]
[1693588452241,0.0070722,25691.0,25686.0,0.06948303]
[1693588452735,0.39415898,25691.0,25686.0,0.06948303]
[1693588452948,0.0430722,25691.0,25687.0,0.06948303]
[1693588453375,0.0430722,25691.0,25686.0,0.003]
[1693588453591,0.0070722,25687.0,25686.0,0.003]
[1693588453805,0.39415898,25687.0,25686.0,0.003]
[1693588454039,0.0070722,25687.0,25686.0,0.003]
[1693588454254,0.0070722,25687.0,25681.0,0.3362278]
[1693588454469,0.15483471,25687.0,25682.0,0.42270956]
[1693588454668,0.15483471,25686.0,25682.0,0.42270956]
[1693588455084,0.15483471,25686.0,25682.0,0.03562278]
[1693588455312,0.0070722,25683.0,25678.0,0.0571678]
[1693588455515,0.0070722,25679.0,25674.0,0.0129278]
[1693588455750,0.0070722,25679.0,25672.0,0.0527238]
[1693588455751,0.15483471,25678.0,25672.0,0.0527238]
[1693588455962,0.15483471,25678.0,25674.0,0.0329278]
[1693588456166,0.15483471,25678.0,25674.0,0.42001458]
[1693588456374,0.15483471,25678.0,25675.0,0.73438824]
[1693588456605,0.0070722,25681.0,25675.0,0.73438824]
[1693588456814,0.0070722,25681.0,25676.0,0.10241083]
[1693588456815,0.004,25678.0,25676.0,0.10241083]
[1693588457025,0.004,25678.0,25677.0,0.42001458]
[1693588457228,0.0070722,25684.0,25677.0,0.44001458]
[1693588457229,0.0070722,25683.0,25677.0,0.44001458]
[1693588457442,0.004,25678.0,25677.0,0.44001458]
[1693588457651,0.0070722,25683.0,25677.0,0.44001458]
[1693588458150,0.02,25687.0,25681.0,0.3362278]
[1693588458450,0.0470722,25687.0,25681.0,0.3362278]
[1693588458663,0.0470722,25687.0,25682.0,0.03562278]
[1693588458664,0.27069672,25683.0,25682.0,0.03562278]
[1693588458873,0.02,25684.0,25678.0,0.0329278]
[1693588459075,0.01,25683.0,25679.0,0.42001458]
[1693588459293,0.01,25683.0,25681.0,0.0329278]
[1693588459502,0.01,25683.0,25682.0,0.44001458]
[1693588459934,0.01,25683.0,25680.0,0.67884]
[1693588459935,0.01,25683.0,25681.0,0.0329278]
[1693588460152,0.15483471,25682.0,25679.0,0.0329278]
[1693588460380,0.15483471,25682.0,25678.0,0.0329278]
[1693588460588,0.15483471,25682.0,25678.0,0.0689278]
[1693588460806,0.15483471,25682.0,25678.0,0.0329278]
[1693588461023,0.15483471,25682.0,25678.0,0.02]
[1693588461238,0.15483471,25682.0,25681.0,0.001]
[1693588461239,0.51415898,25682.0,25681.0,0.001]
[1693588461738,0.53615898,25682.0,25681.0,0.001]
[1693588461919,0.80084424,25682.0,25681.0,0.001]
[1693588462128,0.58688198,25682.0,25681.0,0.001]
[1693588462340,0.85358198,25682.0,25681.0,0.002]
[1693588462550,0.85358198,25682.0,25681.0,0.001]
[1693588462551,1.33228198,25682.0,25681.0,0.001]
[1693588462761,1.33228198,25682.0,25672.0,0.019796]
[1693588462762,0.08,25673.0,25672.0,0.019796]
[1693588462998,0.23483471,25673.0,25672.0,0.019796]
[1693588463217,0.02,25673.0,25672.0,0.019796]
[1693588463437,0.51654,25681.0,25672.0,0.019796]
[1693588463438,0.02,25675.0,25672.0,0.019796]
[1693588463655,0.12,25683.0,25672.0,0.019796]
[1693588463656,0.02,25679.0,25673.0,0.44001458]
[1693588463872,0.02,25679.0,25674.0,0.15274239]
[1693588463873,0.02,25678.0,25674.0,0.15274239]
[1693588464540,0.02,25678.0,25674.0,0.08325936]
[1693588464755,0.1,25680.0,25674.0,0.08325936]
[1693588464968,0.02,25681.0,25677.0,0.0329278]
[1693588465185,0.02,25681.0,25678.0,0.06948303]
[1693588465398,0.015,25679.0,25676.0,0.3033]
[1693588465640,0.015,25679.0,25674.0,0.0639278]
[1693588465641,0.015,25678.0,25674.0,0.0639278]
[1693588465853,0.15483471,25677.0,25674.0,0.0329278]
[1693588466061,0.1,25679.0,25674.0,0.42001458]
[1693588466062,0.003,25679.0,25674.0,0.42001458]
[1693588466268,0.095,25680.0,25675.0,0.77101604]
[1693588466470,0.095,25680.0,25677.0,0.001]
[1693588466952,0.33027557,25678.0,25677.0,0.001]
[1693588467168,0.33027557,25678.0,25674.0,0.03]
[1693588467169,0.1220722,25675.0,25674.0,0.03]
[1693588467399,0.1620722,25675.0,25674.0,0.03]
[1693588467613,0.1620722,25675.0,25674.0,0.028]
[1693588467614,0.3339322,25675.0,25674.0,0.028]
[1693588467823,0.115,25673.0,25672.0,0.019796]
[1693588468032,1.18462149,25673.0,25672.0,0.019796]
[1693588468252,1.32030149,25673.0,25672.0,0.016996]
[1693588468465,1.16708678,25673.0,25672.0,0.016996]
[1693588468688,1.15118678,25673.0,25672.0,0.016996]
[1693588468904,1.15868678,25673.0,25672.0,0.016996]
[1693588469121,1.15868678,25673.0,25669.0,0.019796]
[1693588469122,0.6427,25670.0,25669.0,0.019796]
[1693588469339,0.6427,25670.0,25651.0,0.3033]
[1693588469340,0.02,25658.0,25651.0,0.3033]
[1693588469560,0.06,25666.0,25645.0,0.05645111]
[1693588469561,0.02,25655.0,25645.0,0.05645111]
[1693588469768,0.15483471,25654.0,25646.0,0.38708678]
[1693588469975,0.15483471,25654.0,25647.0,0.04435379]
[1693588470182,0.15483471,25654.0,25648.0,0.38708678]
[1693588470401,0.15483471,25654.0,25648.0,0.69038678]
[1693588470612,0.15483471,25654.0,25647.0,0.04435379]
[1693588470829,0.024,25655.0,25654.0,0.15603143]
[1693588471040,0.08,25658.0,25654.0,0.15603143]
[1693588471260,0.02,25660.0,25654.0,0.15603143]
[1693588471479,0.02,25661.0,25655.0,0.3033]
[1693588471688,0.3794,25667.0,25656.0,0.58785463]
[1693588471689,0.02,25664.0,25656.0,0.58785463]
[1693588471905,0.02,25664.0,25658.0,0.3033]
[1693588471906,0.02,25663.0,25658.0,0.3033]
[1693588472125,0.06,25665.0,25659.0,0.15483471]
[1693588472126,0.02,25665.0,25659.0,0.15483471]
[1693588472341,0.02,25664.0,25660.0,0.15483471]
[1693588472559,0.462,25672.0,25661.0,0.05419215]
[1693588472560,0.02,25668.0,25661.0,0.05419215]
[1693588472773,0.02,25668.0,25662.0,0.84522149]
[1693588473232,0.02,25668.0,25662.0,0.15483471]
[1693588473233,0.036,25663.0,25662.0,0.15483471]
[1693588473449,0.056,25663.0,25661.0,0.05419215]
[1693588473661,0.056,25663.0,25656.0,0.04593314]
[1693588473662,0.02,25661.0,25656.0,0.04593314]
[1693588473961,0.08471768,25660.0,25657.0,0.38708678]
[1693588474179,0.02,25664.0,25662.0,0.028]
[1693588474386,0.06,25665.0,25662.0,0.028]
[1693588474387,0.02,25665.0,25662.0,0.028]
[1693588474595,0.26545053,25663.0,25658.0,0.04330199]
[1693588474798,0.02,25661.0,25658.0,0.43038877]
[1693588475008,0.023,25661.0,25658.0,0.43038877]
[1693588475213,0.10771768,25661.0,25659.0,0.04303888]
[1693588475420,0.10771768,25661.0,25656.0,0.028]
[1693588475421,0.023,25661.0,25656.0,0.028]
[1693588475634,0.08471768,25660.0,25656.0,0.028]
[1693588475843,0.10771768,25661.0,25657.0,0.38708678]
[1693588476054,0.023,25661.0,25658.0,0.3033]
[1693588476266,0.023,25661.0,25658.0,0.72638678]
[1693588476267,0.27952,25661.0,25658.0,0.72638678]
[1693588476474,0.27952,25661.0,25658.0,0.10863868]
[1693588476683,0.02,25659.0,25658.0,0.064]
[1693588477097,0.02,25659.0,25654.0,0.15603143]
[1693588477098,0.02,25656.0,25654.0,0.15603143]